fUST/lending_fUST_20250326
["ID","MTS","AMOUNT","RATE_DAILY","PERIOD"]
[356671953,1742940656757,-500.0,0.0001178,2]
[356671954,1742940656767,-500.0,0.0001178,2]
[356671955,1742940656777,-6147.84,0.0001178,2]
[356671956,1742940656786,-500.0,0.0001178,2]
[356671957,1742940656796,-500.0,0.0001178,2]
[356671958,1742940656806,-500.0,0.0001178,2]
[356671959,1742940656816,-500.0,0.0001178,2]
[356671960,1742940656826,-500.0,0.0001178,2]
[356671961,1742940656837,-626.05814497,0.0001178,2]
[356671962,1742940656847,-500.0,0.0001178,2]
[356671963,1742940656856,-2427.31,0.0001178,2]
[356671964,1742940656866,-500.0,0.0001178,2]
[356671965,1742940656876,-500.0,0.0001178,2]
[356671966,1742940656886,-500.0,0.0001178,2]
[356671967,1742940656895,-500.0,0.0001178,2]
[356671968,1742940656906,-500.0,0.0001178,2]
[356671969,1742940656915,-882.86,0.0001178,2]
[356671970,1742940656924,-500.0,0.0001178,2]
[356671971,1742940656933,-568.23,0.0001178,2]
[356671972,1742940656943,-500.0,0.0001178,2]
[356671973,1742940656952,-500.0,0.0001178,2]
[356671974,1742940656962,-7679.91,0.0001178,2]
[356671975,1742940656972,-500.0,0.0001178,2]
[356671976,1742940656981,-500.0,0.0001178,2]
[356671977,1742940656991,-500.0,0.0001178,2]
[356671978,1742940657000,-500.0,0.0001178,2]
[356671979,1742940657010,-668.75,0.0001178,2]
[356671980,1742940657020,-1324.57,0.0001178,2]
[356671981,1742940657029,-511.19321743,0.0001178,2]
[356671982,1742940657039,-500.0,0.0001178,2]
[356671983,1742940657049,-500.0,0.0001178,2]
[356671984,1742940657059,-500.0,0.0001178,2]
[356671985,1742940657069,-500.0,0.0001178,2]
[356671986,1742940657080,-500.0,0.0001178,2]
[356671987,1742940657090,-500.0,0.0001178,2]
[356671988,1742940657100,-500.0,0.0001178,2]
[356671989,1742940657110,-500.0,0.0001178,2]
[356671990,1742940657120,-500.0,0.0001178,2]
[356671991,1742940657130,-3036.54,0.0001178,2]
[356671992,1742940657139,-500.0,0.0001178,2]
[356671993,1742940657149,-500.0,0.0001178,2]
[356671994,1742940657159,-722.44,0.0001178,2]
[356671995,1742940657168,-500.0,0.0001178,2]
[356671996,1742940657177,-500.0,0.0001178,2]
[356671997,1742940657187,-518.08,0.0001178,2]
[356671998,1742940657196,-2355.41,0.0001178,2]
[356671999,1742940657206,-500.0,0.0001178,2]
[356672000,1742940657226,-500.0,0.0001178,2]
[356672001,1742940657236,-500.0,0.0001178,2]
[356672002,1742940657245,-500.0,0.0001178,2]
[356672003,1742940657254,-500.0,0.0001178,2]
[356672004,1742940657264,-660.47,0.0001178,2]
[356672005,1742940657274,-500.0,0.0001178,2]
[356672006,1742940657284,-500.0,0.0001178,2]
[356672007,1742940657294,-500.0,0.0001178,2]
[356672008,1742940657303,-500.0,0.0001178,2]
[356672009,1742940657313,-500.0,0.0001178,2]
[356672010,1742940657323,-500.0,0.0001178,2]
[356672011,1742940657333,-500.0,0.0001178,2]
[356672012,1742940657343,-500.0,0.0001178,2]
[356672013,1742940657354,-179.368882,0.0001178,2]
[356672014,1742940657363,-3000.0,0.0001178,2]
[356672015,1742940657373,-613.51832688,0.00012009,2]
[356672016,1742940657383,-420.0,0.00012041,2]
[356672017,1742940657393,-1120.71477576,0.0001205,2]
[356672018,1742940657402,-160.98389558,0.00012053,2]
[356672019,1742940657412,-500.0,0.00012054,2]
[356672020,1742940657422,-500.0,0.00012054,2]
[356672021,1742940657431,-500.0,0.00012054,2]
[356672022,1742940657441,-500.0,0.00012054,2]
[356672023,1742940657450,-500.0,0.00012054,2]
[356672024,1742940657460,-500.0,0.00012054,2]
[356672025,1742940657469,-500.0,0.00012054,2]
[356672026,1742940657479,-500.0,0.00012054,2]
[356672027,1742940657488,-500.0,0.00012054,2]
[356672028,1742940657498,-684.91,0.00012054,2]
[356672029,1742940657507,-500.0,0.00012054,2]
[356672030,1742940657517,-824.78,0.00012054,2]
[356672031,1742940657526,-898.44,0.00012054,2]
[356672032,1742940657535,-868.42,0.00012054,2]
[356672033,1742940657545,-500.0,0.00012054,2]
[356672034,1742940657554,-500.0,0.00012054,2]
[356672035,1742940657566,-886.5,0.00012054,2]
[356672036,1742940657576,-500.0,0.00012054,2]
[356672037,1742940657587,-151.0,0.00012054,2]
[356672038,1742940657596,-877.34,0.00012054,2]
[356672039,1742940657606,-500.0,0.00012054,2]
[356672040,1742940657615,-500.0,0.00012054,2]
[356672041,1742940657625,-1633.27,0.00012054,2]
[356672042,1742940657635,-871.35,0.00012054,2]
[356672043,1742940657645,-500.0,0.00012054,2]
[356672044,1742940657654,-500.0,0.00012054,2]
[356672045,1742940657663,-500.0,0.00012054,2]
[356672046,1742940657673,-500.0,0.00012054,2]
[356672047,1742940657682,-500.0,0.00012054,2]
[356672048,1742940657691,-848.11,0.00012054,2]
[356672049,1742940657701,-500.0,0.00012054,2]
[356672050,1742940657853,-500.0,0.00012054,2]
[356672051,1742940657863,-500.0,0.00012054,2]
[356672052,1742940657872,-500.0,0.00012054,2]
[356672053,1742940657882,-500.0,0.00012054,2]
[356672054,1742940657891,-711.15,0.00012054,2]
[356672055,1742940657901,-500.0,0.00012054,2]
[356672056,1742940657910,-500.0,0.00012054,2]
[356672057,1742940657919,-500.0,0.00012054,2]
[356672058,1742940657928,-500.0,0.00012054,2]
[356672059,1742940657938,-169.845839,0.00012054,2]
[356672060,1742940657947,-358.88,0.00012054,2]
[356672061,1742940657956,-500.0,0.00012054,2]
[356672062,1742940657966,-512.16,0.00012054,2]
[356672063,1742940657976,-500.0,0.00012054,2]
[356672064,1742940657985,-500.0,0.00012054,2]
[356672065,1742940657995,-169.845839,0.00012054,2]
[356672066,1742940658004,-500.0,0.00012054,2]
[356672067,1742940658014,-549.60725663,0.00012054,2]
[356672068,1742940658024,-500.0,0.00012054,2]
[356672069,1742940658033,-500.0,0.00012054,2]
[356672070,1742940658043,-174.88233403,0.00012054,2]
[356672071,1742940658052,-500.0,0.00012054,2]
[356672072,1742940658062,-500.0,0.00012054,2]
[356672073,1742940658071,-500.0,0.00012054,2]
[356672074,1742940658081,-500.0,0.00012054,2]
[356672075,1742940658090,-500.0,0.00012054,2]
[356672076,1742940658100,-500.0,0.00012054,2]
[356672077,1742940658109,-500.0,0.00012054,2]
[356672078,1742940658119,-500.0,0.00012054,2]
[356672079,1742940658129,-500.0,0.00012054,2]
[356672080,1742940658138,-949.97,0.00012054,2]
[356672081,1742940658148,-500.0,0.00012054,2]
[356672082,1742940658158,-500.0,0.00012054,2]
[356672083,1742940658167,-195.90660556,0.00012054,2]
[356672084,1742940658176,-150.16,0.00012054,2]
[356672085,1742940658186,-500.0,0.00012054,2]
[356672086,1742940658195,-500.0,0.00012054,2]
[356672087,1742940658204,-500.0,0.00012054,2]
[356672088,1742940658214,-1437.06,0.00012054,2]
[356672089,1742940658223,-500.0,0.00012054,2]
[356672090,1742940658232,-500.0,0.00012054,2]
[356672091,1742940658242,-500.0,0.00012054,2]
[356672092,1742940658251,-500.0,0.00012054,2]
[356672093,1742940658261,-500.0,0.00012054,2]
[356672094,1742940658270,-500.0,0.00012054,2]
[356672095,1742940658280,-500.0,0.00012054,2]
[356672096,1742940658289,-500.0,0.00012054,2]
[356672097,1742940658299,-500.0,0.00012054,2]
[356672098,1742940658308,-500.0,0.00012054,2]
[356672099,1742940658317,-574.21,0.00012054,2]
[356672100,1742940658326,-500.0,0.00012054,2]
[356672101,1742940658336,-975.56,0.00012054,2]
[356672102,1742940658345,-1592.05,0.00012054,2]
[356672103,1742940658355,-500.0,0.00012054,2]
[356672104,1742940658365,-500.0,0.00012054,2]
[356672105,1742940658374,-500.0,0.00012054,2]
[356672106,1742940658384,-500.0,0.00012054,2]
[356672107,1742940658393,-500.0,0.00012054,2]
[356672108,1742940658402,-500.0,0.00012054,2]
[356672109,1742940658411,-500.0,0.00012054,2]
[356672110,1742940658421,-500.0,0.00012054,2]
[356672111,1742940658430,-2306.34,0.00012054,2]
[356672112,1742940658439,-500.0,0.00012054,2]
[356672113,1742940658448,-500.0,0.00012054,2]
[356672114,1742940658457,-151.0,0.00012054,2]
[356672115,1742940658466,-500.0,0.00012054,2]
[356672116,1742940658475,-500.0,0.00012054,2]
[356672117,1742940658484,-151.0,0.00012054,2]
[356672118,1742940658494,-500.0,0.00012054,2]
[356672119,1742940658504,-151.0,0.00012054,2]
[356672120,1742940658513,-500.0,0.00012054,2]
[356672121,1742940658522,-500.0,0.00012054,2]
[356672122,1742940658531,-500.0,0.00012054,2]
[356672123,1742940658541,-500.0,0.00012054,2]
[356672124,1742940658550,-500.0,0.00012054,2]
[356672125,1742940658559,-671.72,0.00012054,2]
[356672126,1742940658573,-325.299698,0.00012054,2]
[356672127,1742940658582,-500.0,0.00012054,2]
[356672128,1742940658591,-500.0,0.00012054,2]
[356672129,1742940658600,-325.299698,0.00012054,2]
[356672130,1742940658610,-151.0,0.00012054,2]
[356672131,1742940658620,-500.0,0.00012054,2]
[356672132,1742940658629,-500.0,0.00012054,2]
[356672133,1742940658642,-546.760311,0.00012054,2]
[356672134,1742940658651,-151.0,0.00012054,2]
[356672135,1742940658660,-500.0,0.00012054,2]
[356672136,1742940658670,-641.96,0.00012054,2]
[356672137,1742940658679,-500.0,0.00012054,2]
[356672138,1742940658688,-546.760311,0.00012054,2]
[356672139,1742940658697,-500.0,0.00012054,2]
[356672140,1742940658706,-500.0,0.00012054,2]
[356672141,1742940658716,-500.0,0.00012054,2]
[356672142,1742940658725,-500.0,0.00012054,2]
[356672143,1742940658735,-500.0,0.00012054,2]
[356672144,1742940658744,-530.87,0.00012054,2]
[356672145,1742940658753,-500.0,0.00012054,2]
[356672146,1742940658762,-500.0,0.00012054,2]
[356672147,1742940658771,-500.0,0.00012054,2]
[356672148,1742940658780,-500.0,0.00012054,2]
[356672149,1742940658789,-571.744593,0.00012054,2]
[356672150,1742940658799,-571.744593,0.00012054,2]
[356672151,1742940658808,-2358.577164,0.00012054,2]
[356672152,1742940658818,-2358.577164,0.00012054,2]
[356672153,1742940658827,-438.08,0.00012054,2]
[356672154,1742940658836,-571.744593,0.00012054,2]
[356672155,1742940658844,-571.744593,0.00012054,2]
[356672156,1742940658853,-2358.577164,0.00012054,2]
[356672157,1742940658862,-2358.577164,0.00012054,2]
[356672158,1742940658871,-420.32,0.00012054,2]
[356672159,1742940658880,-500.0,0.00012054,2]
[356672160,1742940658889,-500.0,0.00012054,2]
[356672161,1742940658899,-987.75,0.00012054,2]
[356672162,1742940658907,-500.0,0.00012054,2]
[356672163,1742940658916,-773.2,0.00012054,2]
[356672164,1742940658925,-500.0,0.00012054,2]
[356672165,1742940658935,-519.65,0.00012054,2]
[356672166,1742940658944,-593.22,0.00012054,2]
[356672167,1742940658953,-500.0,0.00012054,2]
[356672168,1742940658962,-504.10832288,0.00012054,2]
[356672169,1742940658971,-234.32,0.00012054,2]
[356672170,1742940658980,-500.0,0.00012054,2]
[356672171,1742940658989,-530.36,0.00012054,2]
[356672172,1742940658998,-503.97208785,0.00012054,2]
[356672173,1742940659008,-391.6,0.00012054,2]
[356672174,1742940659017,-500.0,0.00012054,2]
[356672175,1742940659027,-500.0,0.00012054,2]
[356672176,1742940659036,-500.0,0.00012054,2]
[356672177,1742940659045,-500.0,0.00012054,2]
[356672178,1742940659055,-536.33458074,0.00012054,2]
[356672179,1742940659064,-533.56,0.00012054,2]
[356672180,1742940659073,-500.0,0.00012054,2]
[356672181,1742940659082,-500.0,0.00012054,2]
[356672182,1742940659091,-500.0,0.00012054,2]
[356672183,1742940659101,-500.0,0.00012054,2]
[356672184,1742940659110,-476.52,0.00012054,2]
[356672185,1742940659119,-502.7621494,0.00012054,2]
[356672186,1742940659128,-386.46468051,0.00012054,2]
[356672187,1742940659138,-500.0,0.00012054,2]
[356672188,1742940659147,-500.0,0.00012054,2]
[356672189,1742940659156,-539.6,0.00012054,2]
[356672190,1742940659165,-500.0,0.00012054,2]
[356672191,1742940659175,-500.0,0.00012054,2]
[356672192,1742940659184,-500.0,0.00012054,2]
[356672193,1742940659194,-500.0,0.00012054,2]
[356672194,1742940659203,-500.0,0.00012054,2]
[356672195,1742940659212,-500.0,0.00012054,2]
[356672196,1742940659221,-500.0,0.00012054,2]
[356672197,1742940659230,-528.71796169,0.00012054,2]
[356672198,1742940659239,-636.450133,0.00012054,2]
[356672199,1742940659249,-500.0,0.00012054,2]
[356672200,1742940659258,-636.450133,0.00012054,2]
[356672201,1742940659267,-500.0,0.00012054,2]
[356672202,1742940659276,-500.0,0.00012054,2]
[356672203,1742940659285,-502.18500793,0.00012054,2]
[356672204,1742940659294,-500.0,0.00012054,2]
[356672205,1742940659304,-500.0,0.00012054,2]
[356672206,1742940659313,-500.0,0.00012054,2]
[356672207,1742940659322,-500.0,0.00012054,2]
[356672208,1742940659332,-500.0,0.00012054,2]
[356672209,1742940659341,-987.07,0.00012054,2]
[356672210,1742940659350,-500.0,0.00012054,2]
[356672211,1742940659360,-582.73039813,0.00012054,2]
[356672212,1742940659370,-500.0,0.00012054,2]
[356672213,1742940659379,-500.0,0.00012054,2]
[356672214,1742940659388,-574.21,0.00012054,2]
[356672215,1742940659398,-500.0,0.00012054,2]
[356672216,1742940659407,-500.0,0.00012054,2]
[356672217,1742940659416,-500.0,0.00012054,2]
[356672218,1742940659425,-2588.72,0.00012054,2]
[356672219,1742940659434,-635.13,0.00012054,2]
[356672220,1742940659444,-500.0,0.00012054,2]
[356672221,1742940659453,-500.0,0.00012054,2]
[356672222,1742940659462,-7574.04,0.00012054,2]
[356672223,1742940659472,-500.0,0.00012054,2]
[356672224,1742940659480,-706.39,0.00012054,2]
[356672225,1742940659491,-919.95,0.00012054,2]
[356672226,1742940659500,-449.29,0.00012054,2]
[356672227,1742940659509,-500.0,0.00012054,2]
[356672228,1742940659519,-500.0,0.00012054,2]
[356672229,1742940659528,-506.965905,0.00012054,2]
[356672230,1742940659537,-506.965905,0.00012054,2]
[356672231,1742940659547,-506.965905,0.00012054,2]
[356672232,1742940659556,-506.965905,0.00012054,2]
[356672233,1742940659568,-500.0,0.00012054,2]
[356672234,1742940659578,-500.0,0.00012054,2]
[356672235,1742940659586,-500.0,0.00012054,2]
[356672236,1742940659595,-835.22,0.00012054,2]
[356672237,1742940659604,-500.0,0.00012054,2]
[356672238,1742940659614,-500.0,0.00012054,2]
[356672239,1742940659623,-500.0,0.00012054,2]
[356672240,1742940659632,-593.6,0.00012054,2]
[356672241,1742940659644,-821.98,0.00012054,2]
[356672242,1742940659653,-500.0,0.00012054,2]
[356672243,1742940659662,-539.45,0.00012054,2]
[356672244,1742940659671,-500.0,0.00012054,2]
[356672245,1742940659681,-500.0,0.00012054,2]
[356672246,1742940659690,-1269.14,0.00012054,2]
[356672247,1742940659699,-3195.43,0.00012054,2]
[356672248,1742940659708,-2353.49,0.00012054,2]
[356672249,1742940659716,-500.0,0.00012054,2]
[356672250,1742940659726,-500.0,0.00012054,2]
[356672251,1742940659735,-4463.96,0.00012054,2]
[356672252,1742940659743,-500.0,0.00012054,2]
[356672253,1742940659753,-712.38,0.00012054,2]
[356672254,1742940659763,-5474.58,0.00012054,2]
[356672255,1742940659772,-500.0,0.00012054,2]
[356672256,1742940659781,-383.717943,0.00012054,2]
[356672257,1742940659790,-383.717943,0.00012054,2]
[356672258,1742940659799,-5190.69,0.00012054,2]
[356672259,1742940659808,-500.0,0.00012054,2]
[356672260,1742940659818,-383.717943,0.00012054,2]
[356672261,1742940659827,-383.717943,0.00012054,2]
[356672262,1742940659836,-1492.31,0.00012054,2]
[356672263,1742940659845,-15419.73,0.00012054,2]
[356672264,1742940659854,-500.0,0.00012054,2]
[356672265,1742940659862,-500.0,0.00012054,2]
[356672266,1742940659871,-500.0,0.00012054,2]
[356672267,1742940659881,-500.0,0.00012054,2]
[356672268,1742940659890,-500.0,0.00012054,2]
[356672269,1742940659900,-590.27,0.00012054,2]
[356672270,1742940659909,-3644.62,0.00012054,2]
[356672271,1742940659918,-500.0,0.00012054,2]
[356672272,1742940659928,-1533.82,0.00012054,2]
[356672273,1742940659938,-500.0,0.00012054,2]
[356672274,1742940659947,-500.0,0.00012054,2]
[356672275,1742940659957,-151.0,0.00012054,2]
[356672276,1742940659966,-151.0,0.00012054,2]
[356672277,1742940659976,-500.0,0.00012054,2]
[356672278,1742940659985,-500.0,0.00012054,2]
[356672279,1742940659995,-151.0,0.00012054,2]
[356672280,1742940660005,-151.0,0.00012054,2]
[356672281,1742940660016,-500.0,0.00012054,2]
[356672282,1742940660026,-500.0,0.00012054,2]
[356672283,1742940660037,-500.0,0.00012054,2]
[356672284,1742940660047,-3706.87,0.00012054,2]
[356672285,1742940660058,-500.0,0.00012054,2]
[356672286,1742940660068,-500.0,0.00012054,2]
[356672287,1742940660079,-639.33,0.00012054,2]
[356672288,1742940660089,-500.0,0.00012054,2]
[356672289,1742940660099,-961.87,0.00012054,2]
[356672290,1742940660109,-500.0,0.00012054,2]
[356672291,1742940660119,-1104.44,0.00012054,2]
[356672292,1742940660130,-151.0,0.00012054,2]
[356672293,1742940660140,-500.0,0.00012054,2]
[356672294,1742940660150,-151.0,0.00012054,2]
[356672295,1742940660160,-579.63,0.00012054,2]
[356672296,1742940660171,-500.0,0.00012054,2]
[356672297,1742940660181,-500.0,0.00012054,2]
[356672298,1742940660191,-500.0,0.00012054,2]
[356672299,1742940660201,-500.0,0.00012054,2]
[356672300,1742940660211,-2129.68,0.00012054,2]
[356672301,1742940660220,-7244.39,0.00012054,2]
[356672302,1742940660231,-500.0,0.00012054,2]
[356672303,1742940660241,-500.0,0.00012054,2]
[356672304,1742940660251,-500.0,0.00012054,2]
[356672305,1742940660261,-500.0,0.00012054,2]
[356672306,1742940660271,-9523.56,0.00012054,2]
[356672307,1742940660281,-500.0,0.00012054,2]
[356672308,1742940660291,-500.0,0.00012054,2]
[356672309,1742940660302,-10969.8,0.00012054,2]
[356672310,1742940660312,-500.0,0.00012054,2]
[356672311,1742940660322,-1115.76,0.00012054,2]
[356672312,1742940660332,-500.0,0.00012054,2]
[356672313,1742940660342,-103726.98,0.00012054,2]
[356672314,1742940660352,-500.0,0.00012054,2]
[356672315,1742940660363,-500.0,0.00012054,2]
[356672316,1742940660373,-500.0,0.00012054,2]
[356672317,1742940660383,-500.0,0.00012054,2]
[356672318,1742940660393,-500.0,0.00012054,2]
[356672319,1742940660403,-568.91,0.00012054,2]
[356672320,1742940660413,-500.0,0.00012054,2]
[356672321,1742940660422,-500.0,0.00012054,2]
[356672322,1742940660432,-4158.75,0.00012054,2]
[356672323,1742940660442,-500.0,0.00012054,2]
[356672324,1742940660451,-500.0,0.00012054,2]
[356672325,1742940660463,-1141.01,0.00012054,2]
[356672326,1742940660472,-2734.78,0.00012054,2]
[356672327,1742940660482,-500.0,0.00012054,2]
[356672328,1742940660492,-500.0,0.00012054,2]
[356672329,1742940660501,-500.0,0.00012054,2]
[356672330,1742940660511,-500.0,0.00012054,2]
[356672331,1742940660521,-151.0,0.00012054,2]
[356672332,1742940660531,-446.94995238,0.00012054,2]
[356672333,1742940660540,-151.0,0.00012054,2]
[356672334,1742940660550,-500.0,0.00012054,2]
[356672335,1742940660559,-500.0,0.00012054,2]
[356672336,1742940660572,-1309.59,0.00012054,2]
[356672337,1742940660582,-500.0,0.00012054,2]
[356672338,1742940660592,-2068.14,0.00012054,2]
[356672339,1742940660602,-500.0,0.00012054,2]
[356672340,1742940660612,-500.0,0.00012054,2]
[356672341,1742940660623,-5178.43,0.00012054,2]
[356672342,1742940660634,-1828.29,0.00012054,2]
[356672343,1742940660644,-500.0,0.00012054,2]
[356672344,1742940660654,-500.0,0.00012054,2]
[356672345,1742940660663,-6147.84,0.00012054,2]
[356672346,1742940660673,-500.0,0.00012054,2]
[356672347,1742940660682,-500.0,0.00012054,2]
[356672348,1742940660692,-500.0,0.00012054,2]
[356672349,1742940660702,-500.0,0.00012054,2]
[356672350,1742940660712,-500.0,0.00012054,2]
[356672351,1742940660721,-2427.31,0.00012054,2]
[356672352,1742940660730,-500.0,0.00012054,2]
[356672353,1742940660740,-500.0,0.00012054,2]
[356672354,1742940660750,-500.0,0.00012054,2]
[356672355,1742940660760,-500.0,0.00012054,2]
[356672356,1742940660769,-392.9080824,0.00012054,2]
[356672357,1742940660779,-882.86,0.00012054,2]
[356672358,1742940660788,-568.23,0.00012054,2]
[356672359,1742940660798,-528.89443565,0.00012054,2]
[356672360,1742940660928,-500.0,0.00012054,2]
[356672361,1742940660939,-7679.91,0.00012054,2]
[356672362,1742940660951,-500.0,0.00012054,2]
[356672363,1742940660961,-500.0,0.00012054,2]
[356672364,1742940660970,-500.0,0.00012054,2]
[356672365,1742940660980,-668.75,0.00012054,2]
[356672366,1742940660990,-1324.57,0.00012054,2]
[356672367,1742940660999,-500.0,0.00012054,2]
[356672368,1742940661009,-535.73240229,0.00012054,2]
[356672369,1742940661019,-500.0,0.00012054,2]
[356672370,1742940661028,-430.02778363,0.00012054,2]
[356672371,1742940661038,-528.76852089,0.00012054,2]
[356672372,1742940661048,-500.0,0.00012054,2]
[356672373,1742940661058,-500.0,0.00012054,2]
[356672374,1742940661068,-500.0,0.00012054,2]
[356672375,1742940661078,-500.0,0.00012054,2]
[356672376,1742940661089,-3036.54,0.00012054,2]
[356672377,1742940661098,-500.0,0.00012054,2]
[356672378,1742940661108,-500.0,0.00012054,2]
[356672379,1742940661117,-722.44,0.00012054,2]
[356672380,1742940661127,-500.0,0.00012054,2]
[356672381,1742940661136,-500.0,0.00012054,2]
[356672382,1742940661145,-518.08,0.00012054,2]
[356672383,1742940661155,-2355.41,0.00012054,2]
[356672384,1742940661164,-500.0,0.00012054,2]
[356672385,1742940661173,-500.0,0.00012054,2]
[356672386,1742940661182,-500.0,0.00012054,2]
[356672387,1742940661192,-500.0,0.00012054,2]
[356672388,1742940661201,-500.0,0.00012054,2]
[356672389,1742940661211,-660.47,0.00012054,2]
[356672390,1742940661220,-500.0,0.00012054,2]
[356672391,1742940661231,-500.0,0.00012054,2]
[356672392,1742940661240,-500.0,0.00012054,2]
[356672393,1742940661250,-500.0,0.00012054,2]
[356672394,1742940661259,-500.0,0.00012054,2]
[356672395,1742940661268,-500.0,0.00012054,2]
[356672396,1742940661278,-500.0,0.00012054,2]
[356672397,1742940661287,-500.0,0.00012054,2]
[356672398,1742940661298,-622.2,0.00012055,3]
[356672399,1742940661309,-645.2214,0.0001211,3]
[356672400,1742940661320,-669.0945918,0.00012165,3]
[356672401,1742940661331,-160.0,0.00012194,2]
[356672402,1742940661340,-834.75273087,0.00012194,2]
[356672403,1742940661350,-160.0,0.00012194,2]
[356672404,1742940661359,-418.3522718,0.00012194,2]
[356672405,1742940661369,-627.0,0.000122,2]
[356672406,1742940661379,-693.8510917,0.0001222,3]
[356672407,1742940661388,-719.52358209,0.00012275,3]
[356672408,1742940661397,-183.321,0.000123,2]
[356672409,1742940661407,-240.43888922,0.00012321,2]
[356672410,1742940661418,-500.0,0.00012328,2]
[356672411,1742940661429,-500.0,0.00012328,2]
[356672412,1742940661438,-500.0,0.00012328,2]
[356672413,1742940661447,-500.0,0.00012328,2]
[356672414,1742940661456,-500.0,0.00012328,2]
[356672415,1742940661466,-500.0,0.00012328,2]
[356672416,1742940661477,-500.0,0.00012328,2]
[356672417,1742940661488,-500.0,0.00012328,2]
[356672418,1742940661498,-500.0,0.00012328,2]
[356672419,1742940661507,-684.91,0.00012328,2]
[356672420,1742940661517,-500.0,0.00012328,2]
[356672421,1742940661527,-824.78,0.00012328,2]
[356672422,1742940661536,-898.44,0.00012328,2]
[356672423,1742940661546,-868.42,0.00012328,2]
[356672424,1742940661555,-500.0,0.00012328,2]
[356672425,1742940661567,-886.5,0.00012328,2]
[356672426,1742940661576,-877.34,0.00012328,2]
[356672427,1742940661586,-1633.27,0.00012328,2]
[356672428,1742940661595,-871.35,0.00012328,2]
[356672429,1742940661604,-500.0,0.00012328,2]
[356672430,1742940661614,-500.0,0.00012328,2]
[356672431,1742940661623,-848.11,0.00012328,2]
[356672432,1742940661634,-638.93087467,0.00012328,2]
[356672433,1742940661646,-167.85,0.00012328,2]
[356672434,1742940661656,-500.0,0.00012328,2]
[356672435,1742940661665,-500.0,0.00012328,2]
[356672436,1742940661675,-711.15,0.00012328,2]
[356672437,1742940661684,-500.0,0.00012328,2]
[356672438,1742940661694,-240.4,0.00012328,2]
[356672439,1742940661703,-169.845839,0.00012328,2]
[356672440,1742940661712,-500.0,0.00012328,2]
[356672441,1742940661722,-500.0,0.00012328,2]
[356672442,1742940661732,-169.845839,0.00012328,2]
[356672443,1742940661742,-418.45,0.00012328,2]
[356672444,1742940661751,-352.76,0.00012328,2]
[356672445,1742940661761,-500.0,0.00012328,2]
[356672446,1742940661770,-500.0,0.00012328,2]
[356672447,1742940661779,-500.0,0.00012328,2]
[356672448,1742940661789,-500.0,0.00012328,2]
[356672449,1742940661799,-500.0,0.00012328,2]
[356672450,1742940661808,-589.92,0.00012328,2]
[356672451,1742940661818,-500.0,0.00012328,2]
[356672452,1742940661828,-949.97,0.00012328,2]